Cogmind - Beta 14 @@@ ROGUE MODE // 2024.11.24 @ 02:47:36 // Winter2019/RPGLIKE Player: admiral_len Result: Destroyed self with Missile Launcher Performance ------------- Evolutions (1) 500 Regions Visited (6) 1200 Robots Destroyed (61) 305 Value Destroyed (2197) 2197 Prototype IDs (0) 0 Alien Tech Used (0) 0 Bonus (4) 4 TOTAL SCORE: 4206 Bonus ------- Follower Combat Kills 25 Friendly Fire -21 Cogmind --------- Core Integrity 0/1250 Matter 112/500 Energy 275/275 System Corruption 0% Temperature Cool (0) Movement Treading (160) Location -6/Proximity Caves Parts ------- > --- POWER (1) -------- Deuterium Engine > --- PROPULSION (2) --- Light Treads Light Treads > --- UTILITY (2) ------ Advanced Targeting Computer Improved Light Armor Plating > --- WEAPON (3) ------- Heavy Assault Rifle Autogun Missile Launcher > --- INVENTORY (1) ---- Autogun Peak State ------------ > --- POWER ------------ Deuterium Engine > --- PROPULSION ------- Light Treads Light Treads > --- UTILITY ---------- Improved Targeting Computer Improved Medium Armor Plating > --- WEAPON ----------- Heavy Assault Rifle Autogun Missile Launcher > --- INVENTORY -------- Autogun [Rating: 18] Favorites ----------- Power Deuterium Engine Engine Deuterium Engine Power Core Light Nuclear Core Propulsion Light Treads Treads Light Treads Utility Targeting Computer Storage Small Matter Pod Processor Targeting Computer Protection Improved Medium Armor Plating Weapon Autogun Ballistic Gun Autogun Launcher Missile Launcher Build | -11 -10 -10 -9 -9 -7 -6 ------- Run | Yrd Mat Min Mat Min Zio Pro Slots Evolved 4 | 3 1 . . . . . Power . | . . . . . . . Propulsion 1 | 1 . . . . . . Utility 1 | 1 . . . . . . Weapon 2 | 1 1 . . . . . Parts Attached 27 | 5 4 . 8 2 3 5 Power 3 | 1 1 . 1 . . . Engine 2 | 1 . . 1 . . . Core 1 | . 1 . . . . . Reactor . | . . . . . . . Propulsion 3 | 2 . . 1 . . . Treads 3 | 2 . . 1 . . . Leg . | . . . . . . . Wheel . | . . . . . . . Hover . | . . . . . . . Flight . | . . . . . . . Utility 8 | . 2 . 2 1 1 2 Device . | . . . . . . . Storage 1 | . 1 . . . . . Processor 3 | . 1 . . 1 . 1 Hackware . | . . . . . . . Protection 4 | . . . 2 . 1 1 Artifact . | . . . . . . . Weapon 13 | 2 1 . 4 1 2 3 Energy Gun . | . . . . . . . Energy Cannon . | . . . . . . . Ballistic Gun 8 | 2 . . 3 1 1 1 Ballistic Cannon . | . . . . . . . Launcher 5 | . 1 . 1 . 1 2 Special Weapon . | . . . . . . . Impact Weapon . | . . . . . . . Slashing Weapon . | . . . . . . . Piercing Weapon . | . . . . . . . Special Melee Weapon . | . . . . . . . Unidentified Prototypes . | . . . . . . . Parts Lost . | . . . . . . . Power . | . . . . . . . Propulsion . | . . . . . . . Utility . | . . . . . . . Weapon . | . . . . . . . Highest Loss Streak . | . . . . . . . To Critical Strikes . | . . . . . . . Average Slot Usage (%) 98 | . 88 100 99 100 100 99 Engine 11 | . 8 . 11 12 12 12 Treads 25 | . 27 25 24 25 25 25 Storage 2 | . 5 12 9 . . . Processor 11 | . 12 12 12 12 12 11 Protection 8 | . . . 2 12 12 12 Ballistic Gun 33 | . 27 25 27 37 36 35 Launcher 2 | . . 12 9 . . 1 Peak Build Rating 18 | 5 10 10 14 15 18 18 Average Rating 14 | 4 7 10 12 14 16 17 On Entrance 10 | . 5 10 10 14 15 17 Naked Turns . | . . . . . . . Heaviest Build 28 | 9 13 13 24 23 28 25 Greatest Support 40 | 40 40 40 40 40 40 40 Greatest Overweight (x) 2 | 2 . . . . . . Average Overweight (x) . | . . . . . . . Largest Inventory Capacity 1 | . . . 1 1 1 1 Average Capacity . | . . . . 1 1 1 Most Carried 1 | . . . 1 1 1 1 Average Carried . | . . . . 1 . 1 Final Capacity 1 | . . . 1 1 1 1 Final Carried 1 | . . . 1 1 1 1 Class Distribution -------------------- 68% | Tank 17% | Gunner 13% | Mutant Dominant Class ---------------- Mutant | -10/Materials Gunner | -10/Mines Gunner | -9/Materials Tank | -9/Mines Tank | -7/Zion Tank | -6/Proximity Caves Resources | -11 -10 -10 -9 -9 -7 -6 ----------- Run | Yrd Mat Min Mat Min Zio Pro Matter Collected 1701 | 201 149 . 606 239 134 372 Remotely . | . . . . . . . Salvage Created 1500 | . 180 . 645 274 . 401 Parts 112 | . 30 . 44 14 . 24 Haulers Intercepted . | . . . . . . . Recyclers Shooed 1 | . . . 1 . . . Parts Field Recycled . | . . . . . . . Retrieved Matter . | . . . . . . . Parts Self-Destructed 25 | . . . . . 2 23 Prevented . | . . . . . . . Kills | -11 -10 -10 -9 -9 -7 -6 ------- Run | Yrd Mat Min Mat Min Zio Pro Combat Hostiles Destroyed 53 | . 11 . 17 5 . 20 Guns 42 | . 10 . 14 5 . 13 AOE 11 | . 1 . 3 . . 7 Classes Destroyed 10 | . 3 . 3 . . 4 Worker 4 | . 3 . 1 . . . Recycler 2 | . . . 1 1 . . Mechanic 1 | . . . . . . 1 Drone 2 | . . . . . . 2 Watcher 1 | . 1 . . . . . Swarmer 6 | . . . . . . 6 Grunt 29 | . 11 . 10 2 . 6 Brawler 5 | . . . 1 1 . 3 Sentry 10 | . . . 6 2 . 2 Behemoth 1 | . . . . . . 1 Best Kill Streak 12 | . 7 . 3 2 . 12 Combat Bots Only 11 | . 4 . 3 2 . 11 Max Kills in Single Turn 5 | . 5 . 2 1 . 3 Gunslinging 1 | . 1 . . . . . Exploded 2 | . 1 . 2 . . 2 Melee . | . . . . . . . Uniques/NPCs Destroyed . | . . . . . . . Combat | -11 -10 -10 -9 -9 -7 -6 -------- Run | Yrd Mat Min Mat Min Zio Pro Hostile Shots Fired 248 | . 45 . 67 13 . 123 Missed 66 | . 12 . 21 5 . 28 Damage Taken 3159 | . 470 . 531 97 30 2031 Core 2362 | . 387 . 422 62 24 1467 Absorbed by Shields . | . . . . . . . Redirected to Core 2004 | . 280 . 351 52 24 1297 Ignored by Resistances 577 | . 39 . 87 22 8 421 Core Remaining (%) 100 | 100 . 100 . . . . Volleys Fired 148 | . 30 . 41 15 13 49 Largest 3 | . 2 . 3 3 1 3 Hottest 82 | . 40 . 69 69 36 82 Shots Fired 310 | . 60 . 85 45 13 107 Gun 274 | . 60 . 83 45 . 86 Cannon . | . . . . . . . Launcher 36 | . . . 2 . 13 21 Special . | . . . . . . . Kinetic 274 | . 60 . 83 45 . 86 Thermal . | . . . . . . . Explosive 36 | . . . 2 . 13 21 Electromagnetic . | . . . . . . . Robot Hit Streak 31 | . 26 . 17 17 . 31 Robot Miss Streak 2 | . 2 . 2 1 . 2 Penetration Max . | . . . . . . . Secondary Targets 7 | . 3 . 1 . . 3 Max Gunslinging Chain 1 | . 1 . 1 . . 1 Shots Hit Robots 230 | . 49 . 65 31 . 85 Core Hits 129 | . 21 . 36 14 . 58 Critical Kills . | . . . . . . . Critical Parts Destroyed 1 | . . . . . . 1 Critical Strikes 1 | . . . . . . 1 Destroy 1 | . . . . . . 1 Melee Attacks . | . . . . . . . Impact . | . . . . . . . Slashing . | . . . . . . . Piercing . | . . . . . . . Sneak Attacks . | . . . . . . . Combat Hostiles . | . . . . . . . Follow-up Attacks . | . . . . . . . Damage Inflicted 5461 | . 1079 . 1225 462 . 2695 Guns 2980 | . 638 . 873 462 . 1007 Cannons . | . . . . . . . Explosions 2462 | . 441 . 333 . . 1688 Melee . | . . . . . . . Ramming 19 | . . . 19 . . . Kinetic 2980 | . 638 . 873 462 . 1007 Thermal 441 | . 441 . . . . . Explosive 2021 | . . . 333 . . 1688 Electromagnetic . | . . . . . . . Impact . | . . . . . . . Slashing . | . . . . . . . Piercing . | . . . . . . . Highest Corruption 3 | . . . 3 3 3 . Average Corruption 2 | . . . 2 3 3 . Corruption Purged . | . . . . . . . Corruption Blocked . | . . . . . . . Effects 14 | . . . . 14 . . Message Errors 3 | . . . . 3 . . Matter Fused 1 | . . . . 1 . . Heat Flow Errors 1 | . . . . 1 . . Energy Discharges 4 | . . . . 4 . . Data Loss (minor) 3 | . . . . 3 . . Misfires 1 | . . . . 1 . . Weapon Failures 1 | . . . . 1 . . Overload Shots . | . . . . . . . Overflow Damage 143 | . 107 . 11 . . 25 Projectiles . | . . . . . . . Explosions 143 | . 107 . 11 . . 25 Melee . | . . . . . . . Knockbacks . | . . . . . . . Impact . | . . . . . . . Kinetic . | . . . . . . . Secondary . | . . . . . . . Self-Inflicted Damage 563 | . 105 . . . 31 427 Shots 13 | . 1 . . . 1 11 Rammed 5 | . 1 . 4 . . . Targets Rammed 5 | . 1 . 4 . . . Kicked . | . . . . . . . Crushed . | . . . . . . . Highest Temperature 240 | . 2 . 69 240 . 67 Average Temperature 23 | . 1 . 19 87 . 18 Received Heat Transfer 1143 | . 225 . 360 42 . 516 Siege Activations . | . . . . . . . Robots Corrupted . | . . . . . . . Combat Hostiles . | . . . . . . . Parts Fried . | . . . . . . . Impact Corruptions . | . . . . . . . Robots Melted . | . . . . . . . Combat Hostiles . | . . . . . . . Parts Melted . | . . . . . . . Heat Transferred 250 | . 250 . . . . . Parts Sabotaged . | . . . . . . . Parts Stolen . | . . . . . . . Parts Stripped . | . . . . . . . Power Chain Reactions . | . . . . . . . Alert | -11 -10 -10 -9 -9 -7 -6 ------- Run | Yrd Mat Min Mat Min Zio Pro Peak Influence 386 | . 359 99 386 208 . . Initial 150 | . . 99 38 150 . . Average 169 | . 197 99 189 135 . . Maximum Alert Level 1 | . 1 . 1 1 . . Low Security (%) 55 | 100 33 100 55 70 . . Level 1 44 | . 66 . 44 29 . . Level 2 . | . . . . . . . Level 3 . | . . . . . . . Level 4 . | . . . . . . . Level 5 . | . . . . . . . High Security . | . . . . . . . Max Security . | . . . . . . . Squads Dispatched 8 | . 5 . 2 . . 1 Investigation 2 | . 2 . . . . . Extermination . | . . . . . . . Reinforcement 5 | . 3 . 2 . . . Assault 1 | . . . . . . 1 Garrison . | . . . . . . . Intercept . | . . . . . . . Searches Triggered . | . . . . . . . Construction Impeded 1 | . . . 1 . . . Haulers Reinforced . | . . . . . . . Active Scanning Responses . | . . . . . . . Cargo Convoy Interrupts . | . . . . . . . Stealth | -11 -10 -10 -9 -9 -7 -6 --------- Run | Yrd Mat Min Mat Min Zio Pro Distress Signals 7 | . 3 1 2 . . 1 Communications Jammed . | . . . . . . . Distress Signals . | . . . . . . . Times Spotted 79 | . 22 . 26 6 . 25 Peak Tracking Total 8 | . 6 . 4 2 . 8 Tactical Retreats 5 | . 2 . 1 . . 2 Traps | -11 -10 -10 -9 -9 -7 -6 ------- Run | Yrd Mat Min Mat Min Zio Pro Traps Triggered 5 | . 2 . 3 . . . Indirectly . | . . . . . . . Trap Hack Attempts . | . . . . . . . Triggered . | . . . . . . . Disarmed . | . . . . . . . Reprogrammed . | . . . . . . . Reused . | . . . . . . . Traps Extracted . | . . . . . . . Installed . | . . . . . . . Triggered . | . . . . . . . Machines | -11 -10 -10 -9 -9 -7 -6 ---------- Run | Yrd Mat Min Mat Min Zio Pro Machines Disabled 5 | . 2 . 2 . . 1 Max in Single Turn 2 | . 2 . 2 . . 1 Machines Repaired . | . . . . . . . Machines Dismantled . | . . . . . . . Machines Sabotaged . | . . . . . . . Overloaded Fab Kills . | . . . . . . . Hacking | -11 -10 -10 -9 -9 -7 -6 --------- Run | Yrd Mat Min Mat Min Zio Pro Machines Accessed . | . . . . . . . Terminals . | . . . . . . . Fabricators . | . . . . . . . Repair Stations . | . . . . . . . Recycling Units . | . . . . . . . Scanalyzers . | . . . . . . . Garrison Access . | . . . . . . . Total Hacks . | . . . . . . . Successful . | . . . . . . . Failed . | . . . . . . . Catastrophic . | . . . . . . . Database Lockouts . | . . . . . . . Manual 1 | . . . . . 1 . Terminals . | . . . . . . . Fabricators . | . . . . . . . Repair Stations . | . . . . . . . Recycling Units . | . . . . . . . Scanalyzers . | . . . . . . . Garrison Access . | . . . . . . . Terminal Hacks . | . . . . . . . Fabricator Hacks . | . . . . . . . Repair Station Hacks . | . . . . . . . Recycling Unit Hacks . | . . . . . . . Scanalyzer . | . . . . . . . Garrison Access Hacks . | . . . . . . . Unauthorized Hacks . | . . . . . . . Terminals . | . . . . . . . Fabricators . | . . . . . . . Repair Stations . | . . . . . . . Recycling Units . | . . . . . . . Scanalyzers . | . . . . . . . Garrison Access . | . . . . . . . Data Cores Recovered . | . . . . . . . Used . | . . . . . . . Hacking Detections . | . . . . . . . Full Trace Events . | . . . . . . . Feedback Events . | . . . . . . . Feedback Blocked . | . . . . . . . Robot Schematics Acquired . | . . . . . . . Robots Built . | . . . . . . . Authchips . | . . . . . . . Time . | . . . . . . . Total Robot Build Rating . | . . . . . . . Part Schematics Acquired . | . . . . . . . Parts Built . | . . . . . . . Authchips . | . . . . . . . Time . | . . . . . . . Total Part Build Rating . | . . . . . . . Parts Repaired . | . . . . . . . Time . | . . . . . . . Parts Recycled . | . . . . . . . Recycled Matter . | . . . . . . . Retrieved Matter . | . . . . . . . Retrieved Components . | . . . . . . . Parts Scanalyzed . | . . . . . . . Part Schematics Acquired . | . . . . . . . Parts Damaged . | . . . . . . . Bothacking | -11 -10 -10 -9 -9 -7 -6 ------------ Run | Yrd Mat Min Mat Min Zio Pro Used RIF Installer . | . . . . . . . Robots Hacked . | . . . . . . . Non-combat . | . . . . . . . Combat . | . . . . . . . Robot Hacks Applied . | . . . . . . . Relay Couplers Released . | . . . . . . . Fabnet Peak Effective % . | . . . . . . . Robots Rewired . | . . . . . . . Allies Hacked . | . . . . . . . Hacks Repelled . | . . . . . . . Allies | -11 -10 -10 -9 -9 -7 -6 -------- Run | Yrd Mat Min Mat Min Zio Pro Total Allies 1 | . . . . 1 . . Largest Group 1 | . . . . 1 . . Highest-Rated Group 31 | . . . . 31 . . Highest-Rated Ally 31 | . . . . 31 . . Total Orders . | . . . . . . . Ally Attacks 4 | . . . . 4 . . Total Damage 41 | . . . . 41 . . Kills 1 | . . . . 1 . . Allies Corrupted . | . . . . . . . Allies Melted . | . . . . . . . Intel | -11 -10 -10 -9 -9 -7 -6 ------- Run | Yrd Mat Min Mat Min Zio Pro Robot Analysis Total . | . . . . . . . Derelict Logs Recovered 5 | . . . . 1 2 2 Drone Launches . | . . . . . . . Drone Recoveries . | . . . . . . . Exploration | -11 -10 -10 -9 -9 -7 -6 ------------- Run | Yrd Mat Min Mat Min Zio Pro Turns Passed 5571 | 75 730 56 1166 785 1760 999 Spaces Moved 3132 | 49 372 36 613 459 1071 532 Core 20 | 20 . . . . . . Treads 3112 | 29 372 36 613 459 1071 532 Legs . | . . . . . . . Wheels . | . . . . . . . Hover . | . . . . . . . Flight . | . . . . . . . Fastest Speed 50 | 50 160 160 160 160 160 160 Average Speed 159 | 139 160 160 160 160 160 160 Slowest Speed 160 | 160 160 160 160 160 160 160 Overloaded Moves . | . . . . . . . Propulsion Burnouts . | . . . . . . . Robots Hopped . | . . . . . . . Cave-ins Triggered . | . . . . . . . Exploration Rate (%) 56 | 3 57 15 70 91 83 78 Regions Visited 6 Branch Regions 4 Pre-discovered Areas 2 | . . . . . 1 1 Known Exits Taken . | . . . . . . . Unknown Exits Taken 6 | 1 1 1 1 1 1 . Scrap Searched 9 | . . . . 2 3 4 Spaces Dug 115 | . . . . . 93 22 Terrain Destroyed 284 | . 15 . 23 . 126 120 Melee . | . . . . . . . Projectile . | . . . . . . . AOE 284 | . 15 . 23 . 126 120 Terrain Rammed . | . . . . . . . Walls Destroyed . | . . . . . . . Machines Disabled . | . . . . . . . Actions | -11 -10 -10 -9 -9 -7 -6 --------- Run | Yrd Mat Min Mat Min Zio Pro Total 3431 | 53 445 35 716 479 1102 601 Wait 44 | . 15 . 16 . 13 . Move 3126 | 48 371 35 612 458 1070 532 Hop . | . . . . . . . Pick Up 1 | . . . . . 1 . Fast Attach 22 | 5 4 . 8 2 1 2 Attach 1 | . . . . . 1 . Detach 1 | . . . 1 . . . Swap 4 | . . . . . 1 3 Drop 12 | . 1 . 6 2 2 1 Fire 148 | . 30 . 41 15 13 49 Melee . | . . . . . . . Ram . | . . . . . . . Kick . | . . . . . . . Crush 5 | . 1 . 4 . . . Escape Stasis . | . . . . . . . Rewire . | . . . . . . . Trap . | . . . . . . . Miscellaneous 67 | . 23 . 28 2 . 14 Route ------- -11/Scrapyard -10/Materials (discovered 3 exits: [*Mat x2] / [*Min]) -10/Mines -9/Materials (discovered 3 exits: [*Mat x2] / [*Min]) -9/Mines (discovered 4 exits: [*Mat x2] / [*Exi] / *Zio) -7/Zion -6/Proximity Caves History --------- Turn | Location | Event 1 | -11/Scrapyard | Upgraded with Propulsion slot (x1) 1 | -11/Scrapyard | Upgraded with Utility slot (x1) 1 | -11/Scrapyard | Upgraded with Weapon slot (x1) 28 | -11/Scrapyard | Discovered new exit (range 16) 76 | -11/Scrapyard | Entered Materials 317 | -10/Materials | Build established: Mutant 362 | -10/Materials | Discovered new exit (range 15) 556 | -10/Materials | Discovered new exit (range 16) 646 | -10/Materials | Discovered new exit (range 14) 682 | -10/Materials | Reached level 2 688 | -10/Materials | Upgraded with Weapon slot (x1) 806 | -10/Materials | Entered Mines 826 | -10/Mines | Discovered new exit (range 10) 839 | -10/Mines | Assembled infested the area 844 | -10/Mines | Assisted by a Guerilla fighting off Assembled 862 | -10/Mines | Entered Materials 864 | -9/Materials | Reached level 3 1064 | -9/Materials | Build established: Gunner 1358 | -9/Materials | Reached level 4 1449 | -9/Materials | Discovered new exit (range 8) 1884 | -9/Materials | Discovered new exit (range 3) 1996 | -9/Materials | Discovered new exit (range 16) 2028 | -9/Materials | Entered Mines 2030 | -9/Mines | Reached level 5 2031 | -9/Mines | Received a Mining Laser from a helpful Derelict 2043 | -9/Mines | Build established: Tank 2132 | -9/Mines | Learned Materials stockpile data 2153 | -9/Mines | A Derelict revealed a hidden shortcut to a safe place 2495 | -9/Mines | Joined a pair of Derelicts in attacking an 0b10 outpost 2568 | -9/Mines | Discovered new exit (range 9) 2589 | -9/Mines | Deemed a non-threat by the Exiles lab entrance 2591 | -9/Mines | Discovered new exit (range 5) 2664 | -9/Mines | Discovered new exit (range 15) 2813 | -9/Mines | Entered Zion 2815 | -7/Zion | Reached level 6 2877 | -7/Zion | System corruption cleaned by Quarantine Array 2998 | -7/Zion | Learned Factory garrison access intel 3014 | -7/Zion | Learned location of Extension (-4) 4048 | -7/Zion | Given A8's code to call for help 4244 | -7/Zion | Warned about damaging Zion machinery 4549 | -7/Zion | Discovered new exit (range 15) 4573 | -7/Zion | Entered Proximity Caves 4597 | -6/Proximity Caves | Learned 4 Factory zone layouts 4698 | -6/Proximity Caves | Spotter reported a threat 4757 | -6/Proximity Caves | Reached level 7 4844 | -6/Proximity Caves | Spotted B-75 Beast 4873 | -6/Proximity Caves | Destroyed B-75 Beast 5084 | -6/Proximity Caves | Attracted the attention of an 0b10 checkpoint 5468 | -6/Proximity Caves | Attracted the attention of an 0b10 outpost 5510 | -6/Proximity Caves | Core integrity fell below 50% 5519 | -6/Proximity Caves | Core integrity fell below 20% 5527 | -6/Proximity Caves | Reached level 8 5555 | -6/Proximity Caves | Destroyed 11 combat bots 5572 | -6/Proximity Caves | Destroyed self with Missile Launcher Last Messages --------------- Lgt. Deuterium Engine fries itself beyond repair. G-50 Soldier destroyed. Penetrated by Slug. The unstable cave ceiling collapses. 6 Matter crushed. The unstable cave ceiling collapses. Penetrated by Slug. The unstable cave ceiling collapses. Penetrated by Slug. The unstable cave ceiling collapses. G-50 Soldier destroyed. Reached level 8. Y-64 Sentinel destroyed. The unstable cave ceiling collapses. B-48 Gladiator destroyed. Destroyed Hvy. Laser. Machine disabled. The unstable cave ceiling collapses. Rnf. Deuterium Engine fries itself beyond repair. The unstable cave ceiling collapses. Map ----- +----------------------------------------------------+ | ?????????????????????????????????????????? | | ?????????????????????????????????????????? | | ?????????????????????????????????????????? | | ?????????????????????????????????????????? | | ?????????????????????????????????????????? | | ?????????????????????????????????????????? | | ?????????????????????????????????????????? | | ?????????????????##??????????????????????? | | ?????????????????# #?????????????????????? | | ??????????????????# #????????????????????? | | ???????????????????# #?##????????????????? | | ????????????????????# ## ###?????????????? | | ???????###???????????# ###???????????? | | ??###### #??????????## # ###?????????? | | ?## ## #??????????# ##????????? | | ## ######??###### # #????????? | | # ## #??# % # #????????? | | # ## #?## ### ### # #????????? | | # ### # # # ## #????????? | | # #" ##????????? | | # #" ###????????? | | ### #" % #????????? | | ## #?### # # #????????? | | ?# ### ##???# #" #Y #????????? | | ## ### ###????# # # # #????????? | | # ##??????# @ #????????? | | ## ##??####### #????????? | | ## ####??# ## # # ###????????? | | ?# #????# ########????????????? | | ? #????# ########???????????????????? | | ?# #???#?????????????????????????????? | | ?# #?????????????????????????????????? | | ?# #????????????????????????????????? | | ? #???????????????????????????????? | | ? ##???????????????????????????????? | | ? #????????????????????????????????? | | ? #????????????????????????????????? | | ?? ????????????????????????????????? | | ?? ???????????????????????????????? | | ?? ?? ????????????????????????????????? | | ?????????????????????????????????????????? | | ?????????????????????????????????????????? | | ?????????????????????????????????????????? | | ?????????????????????????????????????????? | | ?????????????????????????????????????????? | | ?????????????????????????????????????????? | | ?????????????????????????????????????????? | | ?????????????????????????????????????????? | | ?????????????????????????????????????????? | | ?????????????????????????????????????????? | +----------------------------------------------------+ Best States ------------- Heat Dissipation 37 Energy Generation 14 Energy Capacity 275 Matter Stores 500 Matter Capacity 500 Sight Range 16 Terrain Scan Density 10 Armor Coverage 225 Resistance: KI 15 Resistance: TH 15 Resistance: EX 20 Evasion (%) 40 Targeting Accuracy 8 Recoil Reduction 2 Defensive Hacking 10 Item Schematics ----------------- None Robot Schematics ------------------ None Fabricated ------------ Nothing Alien Tech Used ----------------- None Achievements -------------- None Challenges ------------ None RPGLIKE | -11 -10 -10 -9 -9 -7 -6 --------- Run | Yrd Mat Min Mat Min Zio Pro Levels Raised 7 | . 1 . 2 1 1 2 XP Earned 13662 | 3000 1585 500 3900 1227 500 2950 XP Spent 11425 | 2955 1375 . 3125 1470 1375 1125 Upgrades 41 | 11 7 . 9 5 3 6 Propulsion Slot 1 | 1 . . . . . . Utility Slot 1 | 1 . . . . . . Weapon Slot 2 | 1 1 . . . . . Core Integrity 13 | 3 5 . . . . 5 Heat Dissipation 2 | . . . . 2 . . Matter Storage 4 | . . . 2 1 1 . Inventory Capacity 1 | . . . 1 . . . Ranged Accuracy 5 | 2 . . 2 . 1 . Hack Defense % 2 | . 1 . . . . 1 KI Resistance % 3 | 1 . . 1 1 . . TH Resistance % 3 | 1 . . 1 1 . . EX Resistance % 4 | 1 . . 2 . 1 . Protomatter Created 983 | . 295 . 305 112 . 271 Integrity Restored 1336 | . 461 . 575 9 . 291 Core 1109 | . 387 . 422 9 . 291 Parts 227 | . 74 . 153 . . . Protomatter Decayed 388 | . 123 . 110 108 36 11 Game ------ Seed SubdwellerLauncherFocus Manual? 0 Play Time 00:37:36 Cumulative 33.8 hours Start 2024.11.24 @ 01:05:44 End 2024.11.24 @ 02:47:36 Sessions 1 Manual Loads 0 Difficulty Rogue Special Mode Winter2019/RPGLIKE Game No. 54 Rogue 54 Adventurer 0 Explorer 0 Win Type - Total 0 Types 0/0/0/0/0/0/0/0/0 Lore% 7 Gallery% 23 Achievement% 26 Wizard Run 0 Options --------- Layout 0 ASCII 0 Keyboard 0 Movement Mouse Keybinds 0 Fullscreen 1 Font 18/SmallcapsGlow Map View 38x25 Zoom Use 99% Tactical HUD 0 Map Filters NONE Filters NONE Steam 1 RUN: d264c9e0-6c82-4b80-8f11-32c58c6c40dc